fUSD/lending_fUSD_20240613
["ID","MTS","AMOUNT","RATE_DAILY","PERIOD"]
[329377678,1718292686080,-1216.69,0.000263,3]
[329377679,1718292686109,-800.18,0.000263,3]
[329377680,1718292686124,-1199.27,0.000263,3]
[329377681,1718292686152,-1277.74,0.000263,3]
[329377682,1718292686199,-1138.63,0.000263,3]
[329377683,1718292686229,-500.0,0.000263,3]
[329377684,1718292686259,-3406.93,0.000263,3]
[329377685,1718292686338,-500.0,0.000263,3]
[329377686,1718292686382,-500.0,0.000263,3]
[329377687,1718292686431,-500.0,0.000263,3]
[329377688,1718292686480,-500.0,0.000263,3]
[329377689,1718292686500,-1350.88,0.000263,3]
[329377690,1718292686516,-851.08,0.000263,3]
[329377691,1718292686568,-500.0,0.000263,3]
[329377692,1718292686592,-947.08,0.000263,3]
[329377693,1718292686620,-513.46,0.000263,3]
[329377694,1718292686634,-727.33,0.000263,3]
[329377695,1718292686656,-500.0,0.000263,3]
[329377696,1718292686684,-500.0,0.000263,3]
[329377697,1718292686704,-505.2,0.000263,3]
[329377698,1718292686721,-327.29,0.000263,3]
[329377699,1718292686778,-719.42,0.000263,3]
[329377700,1718292686819,-1080.47,0.000263,3]
[329377701,1718292686830,-500.0,0.00026301,3]
[329377702,1718292686849,-500.0,0.00026301,3]
[329377703,1718292686863,-500.0,0.00026301,3]
[329377704,1718292686885,-2669.88,0.00026301,3]
[329377705,1718292686898,-500.0,0.00026301,3]
[329377706,1718292686912,-500.0,0.00026301,3]
[329377707,1718292686925,-857.41,0.00026301,3]
[329377708,1718292686952,-243.35412671,0.00026301,3]
[329377709,1718292686970,-1143.43,0.00026301,3]
[329377710,1718292686994,-500.0,0.00026301,3]
[329377711,1718292687018,-1621.77,0.00026301,3]
[329377712,1718292687054,-674.54,0.00026301,3]
[329377713,1718292687074,-500.0,0.00026301,3]
[329377714,1718292687096,-1174.3,0.00026301,3]
[329377715,1718292687108,-500.0,0.00026301,3]
[329377716,1718292687120,-500.0,0.00026301,3]
[329377717,1718292687132,-500.0,0.00026301,3]
[329377718,1718292687153,-1348.57,0.00026301,3]
[329377719,1718292687216,-500.0,0.00026301,3]
[329377720,1718292687232,-500.0,0.00026301,3]
[329377721,1718292687273,-500.0,0.00026301,3]
[329377722,1718292687292,-500.0,0.00026301,3]
[329377723,1718292687306,-502.75,0.00026301,3]
[329377724,1718292687318,-535.86,0.00026301,3]
[329377725,1718292687352,-1384.42,0.00026301,3]
[329377726,1718292687380,-822.29,0.00026301,3]
[329377727,1718292687398,-359.37159343,0.00026301,3]
[329377728,1718292687436,-521.6,0.00026301,3]
[329377729,1718292687448,-500.0,0.00026301,3]
[329377730,1718292687459,-500.0,0.00026301,3]
[329377731,1718292687491,-500.0,0.00026301,3]
[329377732,1718292687504,-500.0,0.00026301,3]
[329377733,1718292687516,-1073.92,0.00026301,3]
[329377734,1718292687544,-304.80881487,0.00026301,3]
[329377735,1718292687560,-2065.58,0.00026301,3]
[329377736,1718292687574,-500.0,0.00026301,3]
[329377737,1718292687585,-649.62,0.00026301,3]
[329377738,1718292687595,-550.84,0.00026301,3]
[329377739,1718292687606,-500.0,0.00026301,3]
[329377740,1718292687617,-500.0,0.00026301,3]
[329377741,1718292687635,-500.0,0.00026301,3]
[329377742,1718292687650,-928.65,0.00026301,3]
[329377743,1718292687664,-502.28,0.00026301,3]
[329377744,1718292687678,-691.98,0.00026301,3]
[329377745,1718292687717,-651.06,0.00026301,3]
[329377746,1718292687727,-500.0,0.00026301,3]
[329377747,1718292687739,-516.01,0.00026301,3]
[329377748,1718292687751,-1917.61,0.00026301,3]
[329377749,1718292687766,-1173.15,0.00026301,3]
[329377750,1718292687776,-500.0,0.00026301,3]
[329377751,1718292687786,-500.0,0.00026301,3]
[329377752,1718292687819,-1388.4,0.00026301,3]
[329377753,1718292687829,-719.63,0.00026301,3]
[329377754,1718292687844,-1000.0,0.00026362,2]
[329377755,1718292687856,-500.0,0.00026574,3]
[329377756,1718292687867,-500.0,0.00026574,3]
[329377757,1718292687880,-500.0,0.00026574,3]
[329377758,1718292687890,-500.0,0.00026574,3]
[329377759,1718292687901,-500.0,0.00026574,3]
[329377760,1718292687920,-500.0,0.00026574,3]
[329377761,1718292687937,-500.0,0.00026574,3]
[329377762,1718292687954,-500.0,0.00026574,3]
[329377763,1718292688020,-154.15,0.00026574,3]
[329377764,1718292688035,-500.0,0.00026574,3]
[329377765,1718292688056,-500.0,0.00026574,3]
[329377766,1718292688079,-724.51,0.00026574,3]
[329377767,1718292688090,-500.0,0.00026574,3]
[329377768,1718292688125,-500.0,0.00026574,3]
[329377769,1718292688148,-500.0,0.00026574,3]
[329377770,1718292688215,-500.0,0.00026574,3]
[329377771,1718292688229,-500.0,0.00026574,3]
[329377772,1718292688252,-500.0,0.00026574,3]
[329377773,1718292688263,-500.0,0.00026574,3]
[329377774,1718292688274,-500.0,0.00026574,3]
[329377775,1718292688286,-514.8,0.00026574,3]
[329377776,1718292688301,-500.0,0.00026574,3]
[329377777,1718292688315,-500.0,0.00026574,3]
[329377778,1718292688338,-820.37,0.00026574,3]
[329377779,1718292688365,-1564.46,0.00026574,3]
[329377780,1718292688380,-1160.7,0.00026574,3]
[329377781,1718292688391,-500.0,0.00026574,3]
[329377782,1718292688404,-635.4,0.00026574,3]
[329377783,1718292688432,-984.58,0.00026574,3]
[329377784,1718292688444,-252.11806974,0.00026574,3]
[329377785,1718292688469,-2101.74,0.00026574,3]
[329377786,1718292688487,-529.09,0.00026574,3]
[329377787,1718292688499,-500.0,0.00026574,3]
[329377788,1718292688522,-1065.38,0.00026574,3]
[329377789,1718292688564,-2589.34,0.00026574,3]
[329377790,1718292688590,-3405.79,0.00026574,3]
[329377791,1718292688615,-789.36,0.00026574,3]
[329377792,1718292688626,-1078.35,0.00026574,3]
[329377793,1718292688647,-500.0,0.00026574,3]
[329377794,1718292688664,-500.0,0.00026574,3]
[329377795,1718292688680,-590.78,0.00026574,3]
[329377796,1718292688709,-500.0,0.00026574,3]
[329377797,1718292688744,-500.0,0.00026574,3]
[329377798,1718292688759,-689.43,0.00026574,3]
[329377799,1718292688808,-628.08,0.00026574,3]
[329377800,1718292688824,-500.0,0.00026574,3]
[329377801,1718292688846,-500.0,0.00026574,3]
[329377802,1718292688879,-500.0,0.00026574,3]
[329377803,1718292688896,-500.0,0.00026574,3]
[329377804,1718292688976,-731.88,0.00026574,3]
[329377805,1718292688989,-539.27,0.00026574,3]
[329377806,1718292689018,-1216.69,0.00026574,3]
[329377807,1718292689048,-800.18,0.00026574,3]
[329377808,1718292689061,-1199.27,0.00026574,3]
[329377809,1718292689074,-1277.74,0.00026574,3]
[329377810,1718292689085,-1138.63,0.00026574,3]
[329377811,1718292689109,-500.0,0.00026574,3]
[329377812,1718292689128,-1415.49,0.00026574,3]
[329377813,1718292689155,-204.12073747,0.00026574,3]
[329377814,1718292689177,-3406.93,0.00026574,3]
[329377815,1718292689198,-500.0,0.00026574,3]
[329377816,1718292689211,-332.09,0.00026574,3]
[329377817,1718292689241,-500.0,0.00026574,3]
[329377818,1718292689254,-1350.88,0.00026574,3]
[329377819,1718292689297,-851.08,0.00026574,3]
[329377820,1718292689320,-500.0,0.00026574,3]
[329377821,1718292689357,-947.08,0.00026574,3]
[329377822,1718292689371,-727.33,0.00026574,3]
[329377823,1718292689385,-500.0,0.00026574,3]
[329377824,1718292689416,-500.0,0.00026574,3]
[329377825,1718292689428,-505.2,0.00026574,3]
[329377826,1718292689461,-719.42,0.00026574,3]
[329377827,1718292689477,-1080.47,0.00026574,3]
[329377828,1718292689494,-500.0,0.00026575,3]
[329377829,1718292689529,-500.0,0.00026575,3]
[329377830,1718292689543,-311.53,0.00026575,3]
[329377831,1718292689565,-2669.88,0.00026575,3]
[329377832,1718292689620,-500.0,0.00026575,3]
[329377833,1718292689684,-555.77,0.00026575,3]
[329377834,1718292689705,-857.41,0.00026575,3]
[329377835,1718292689746,-1143.43,0.00026575,3]
[329377836,1718292689762,-500.0,0.00026575,3]
[329377837,1718292689780,-1621.77,0.00026575,3]
[329377838,1718292689800,-674.54,0.00026575,3]
[329377839,1718292689812,-500.0,0.00026575,3]
[329377840,1718292689827,-1174.3,0.00026575,3]
[329377841,1718292689854,-500.0,0.00026575,3]
[329377842,1718292689867,-500.0,0.00026575,3]
[329377843,1718292689902,-500.0,0.00026575,3]
[329377844,1718292689929,-1348.57,0.00026575,3]
[329377845,1718292689987,-500.0,0.00026575,3]
[329377846,1718292690004,-500.0,0.00026575,3]
[329377847,1718292690048,-500.0,0.00026575,3]
[329377848,1718292690082,-500.0,0.00026575,3]
[329377849,1718292690122,-502.75,0.00026575,3]
[329377850,1718292690136,-535.86,0.00026575,3]
[329377851,1718292690157,-1384.42,0.00026575,3]
[329377852,1718292690187,-822.29,0.00026575,3]
[329377853,1718292690247,-521.6,0.00026575,3]
[329377854,1718292690259,-500.0,0.00026575,3]
[329377855,1718292690299,-500.0,0.00026575,3]
[329377856,1718292690314,-500.0,0.00026575,3]
[329377857,1718292690353,-500.0,0.00026575,3]
[329377858,1718292690395,-1073.92,0.00026575,3]
[329377859,1718292690408,-2065.58,0.00026575,3]
[329377860,1718292690431,-500.0,0.00026575,3]
[329377861,1718292690456,-649.62,0.00026575,3]
[329377862,1718292690494,-550.84,0.00026575,3]
[329377863,1718292690513,-500.0,0.00026575,3]
[329377864,1718292690553,-500.0,0.00026575,3]
[329377865,1718292690588,-500.0,0.00026575,3]
[329377866,1718292690610,-928.65,0.00026575,3]
[329377867,1718292690631,-502.28,0.00026575,3]
[329377868,1718292690646,-691.98,0.00026575,3]
[329377869,1718292690658,-651.06,0.00026575,3]
[329377870,1718292690682,-500.0,0.00026575,3]
[329377871,1718292690739,-516.01,0.00026575,3]
[329377872,1718292690753,-1917.61,0.00026575,3]
[329377873,1718292690766,-1173.15,0.00026575,3]
[329377874,1718292690792,-500.0,0.00026575,3]
[329377875,1718292690806,-500.0,0.00026575,3]
[329377876,1718292690818,-1388.4,0.00026575,3]
[329377877,1718292690853,-719.63,0.00026575,3]
[329377878,1718292690881,-1331.03925421,0.00026627,2]
[329377879,1718292690924,-452.44526137,0.00026848,3]
[329377880,1718292690985,-500.0,0.00026848,3]
[329377881,1718292690997,-500.0,0.00026848,3]
[329377882,1718292691040,-500.0,0.00026848,3]
[329377883,1718292691051,-500.0,0.00026848,3]
[329377884,1718292691101,-500.0,0.00026848,3]
[329377885,1718292691136,-500.0,0.00026848,3]
[329377886,1718292691148,-500.0,0.00026848,3]
[329377887,1718292691174,-154.15,0.00026848,3]
[329377888,1718292691204,-500.0,0.00026848,3]
[329377889,1718292691228,-500.0,0.00026848,3]
[329377890,1718292691256,-724.51,0.00026848,3]
[329377891,1718292691284,-500.0,0.00026848,3]
[329377892,1718292691295,-500.0,0.00026848,3]
[329377893,1718292691305,-500.0,0.00026848,3]
[329377894,1718292691317,-500.0,0.00026848,3]
[329377895,1718292691358,-500.0,0.00026848,3]
[329377896,1718292691373,-500.0,0.00026848,3]
[329377897,1718292691387,-500.0,0.00026848,3]
[329377898,1718292691398,-500.0,0.00026848,3]
[329377899,1718292691415,-514.8,0.00026848,3]
[329377900,1718292691425,-500.0,0.00026848,3]
[329377901,1718292691436,-500.0,0.00026848,3]
[329377902,1718292691447,-820.37,0.00026848,3]
[329377903,1718292691458,-1564.46,0.00026848,3]
[329377904,1718292691469,-1160.7,0.00026848,3]
[329377905,1718292691480,-500.0,0.00026848,3]
[329377906,1718292691491,-635.4,0.00026848,3]
[329377907,1718292691502,-984.58,0.00026848,3]
[329377908,1718292691538,-2101.74,0.00026848,3]
[329377909,1718292691567,-529.09,0.00026848,3]
[329377910,1718292691579,-500.0,0.00026848,3]
[329377911,1718292691591,-1065.38,0.00026848,3]
[329377912,1718292691610,-2589.34,0.00026848,3]
[329377913,1718292691621,-3405.79,0.00026848,3]
[329377914,1718292691635,-789.36,0.00026848,3]
[329377915,1718292691646,-1078.35,0.00026848,3]
[329377916,1718292691659,-500.0,0.00026848,3]
[329377917,1718292691671,-500.0,0.00026848,3]
[329377918,1718292691685,-590.78,0.00026848,3]
[329377919,1718292691700,-500.0,0.00026848,3]
[329377920,1718292691713,-500.0,0.00026848,3]
[329377921,1718292691725,-689.43,0.00026848,3]
[329377922,1718292691736,-628.08,0.00026848,3]
[329377923,1718292691747,-282.56,0.00026848,3]
[329377924,1718292691758,-500.0,0.00026848,3]
[329377925,1718292691769,-258.75,0.00026848,3]
[329377926,1718292691791,-500.0,0.00026848,3]
[329377927,1718292691802,-731.88,0.00026848,3]
[329377928,1718292691818,-539.27,0.00026848,3]
[329377929,1718292691830,-1216.69,0.00026848,3]
[329377930,1718292691844,-800.18,0.00026848,3]
[329377931,1718292691872,-1199.27,0.00026848,3]
[329377932,1718292691885,-1277.74,0.00026848,3]
[329377933,1718292691912,-1138.63,0.00026848,3]
[329377934,1718292691936,-500.0,0.00026848,3]
[329377935,1718292691965,-3406.93,0.00026848,3]
[329377936,1718292691980,-346.3,0.00026848,3]
[329377937,1718292692007,-500.0,0.00026848,3]
[329377938,1718292692036,-1350.88,0.00026848,3]
[329377939,1718292692050,-851.08,0.00026848,3]
[329377940,1718292692076,-500.0,0.00026848,3]
[329377941,1718292692088,-947.08,0.00026848,3]
[329377942,1718292692113,-727.33,0.00026848,3]
[329377943,1718292692140,-500.0,0.00026848,3]
[329377944,1718292692179,-500.0,0.00026848,3]
[329377945,1718292692191,-505.2,0.00026848,3]
[329377946,1718292692203,-719.42,0.00026848,3]
[329377947,1718292692216,-1080.47,0.00026848,3]
[329377948,1718292692240,-318.66,0.00026849,3]
[329377949,1718292692253,-500.0,0.00026849,3]
[329377950,1718292692266,-2669.88,0.00026849,3]
[329377951,1718292692282,-500.0,0.00026849,3]
[329377952,1718292692309,-857.41,0.00026849,3]
[329377953,1718292692322,-1143.43,0.00026849,3]
[329377954,1718292692334,-500.0,0.00026849,3]
[329377955,1718292692358,-1621.77,0.00026849,3]
[329377956,1718292692379,-674.54,0.00026849,3]
[329377957,1718292692395,-500.0,0.00026849,3]
[329377958,1718292692407,-1174.3,0.00026849,3]
[329377959,1718292692424,-500.0,0.00026849,3]
[329377960,1718292692440,-500.0,0.00026849,3]
[329377961,1718292692452,-500.0,0.00026849,3]
[329377962,1718292692467,-1348.57,0.00026849,3]
[329377963,1718292692493,-500.0,0.00026849,3]
[329377964,1718292692525,-500.0,0.00026849,3]
[329377965,1718292692560,-500.0,0.00026849,3]
[329377966,1718292692591,-500.0,0.00026849,3]
[329377967,1718292692602,-502.75,0.00026849,3]
[329377968,1718292692620,-535.86,0.00026849,3]
[329377969,1718292692632,-1384.42,0.00026849,3]
[329377970,1718292692651,-822.29,0.00026849,3]
[329377971,1718292692663,-521.6,0.00026849,3]
[329377972,1718292692674,-500.0,0.00026849,3]
[329377973,1718292692701,-500.0,0.00026849,3]
[329377974,1718292692723,-500.0,0.00026849,3]
[329377975,1718292692738,-500.0,0.00026849,3]
[329377976,1718292692751,-1073.92,0.00026849,3]
[329377977,1718292692765,-2065.58,0.00026849,3]
[329377978,1718292692780,-500.0,0.00026849,3]
[329377979,1718292692803,-649.62,0.00026849,3]
[329377980,1718292692814,-550.84,0.00026849,3]
[329377981,1718292692825,-500.0,0.00026849,3]
[329377982,1718292692855,-500.0,0.00026849,3]
[329377983,1718292692878,-500.0,0.00026849,3]
[329377984,1718292692914,-928.65,0.00026849,3]
[329377985,1718292692934,-502.28,0.00026849,3]
[329377986,1718292692952,-691.98,0.00026849,3]
[329377987,1718292692966,-651.06,0.00026849,3]
[329377988,1718292692977,-500.0,0.00026849,3]
[329377989,1718292692991,-516.01,0.00026849,3]
[329377990,1718292693013,-1917.61,0.00026849,3]
[329377991,1718292693041,-1173.15,0.00026849,3]
[329377992,1718292693054,-500.0,0.00026849,3]
[329377993,1718292693101,-500.0,0.00026849,3]
[329377994,1718292693114,-1388.4,0.00026849,3]
[329377995,1718292693136,-719.63,0.00026849,3]
[329377996,1718292693147,-155.09678174,0.00026998,2]
[329377997,1718292693173,-150.0,0.00027,2]
[329377998,1718292693190,-500.0,0.00027122,3]
[329377999,1718292693364,-500.0,0.00027122,3]
[329378000,1718292693386,-500.0,0.00027122,3]
[329378001,1718292693417,-500.0,0.00027122,3]
[329378002,1718292693472,-500.0,0.00027122,3]
[329378003,1718292693495,-500.0,0.00027122,3]
[329378004,1718292693535,-500.0,0.00027122,3]
[329378005,1718292693550,-154.15,0.00027122,3]
[329378006,1718292693575,-500.0,0.00027122,3]
[329378007,1718292693604,-500.0,0.00027122,3]
[329378008,1718292693632,-724.51,0.00027122,3]
[329378009,1718292693695,-500.0,0.00027122,3]
[329378010,1718292693741,-500.0,0.00027122,3]
[329378011,1718292693758,-336.77168733,0.00027122,3]
[329378012,1718292693778,-500.0,0.00027122,3]
[329378013,1718292693820,-500.0,0.00027122,3]
[329378014,1718292693856,-500.0,0.00027122,3]
[329378015,1718292693872,-500.0,0.00027122,3]
[329378016,1718292693887,-500.0,0.00027122,3]
[329378017,1718292693901,-514.8,0.00027122,3]
[329378018,1718292693922,-500.0,0.00027122,3]
[329378019,1718292693939,-500.0,0.00027122,3]
[329378020,1718292693961,-820.37,0.00027122,3]
[329378021,1718292693980,-1564.46,0.00027122,3]
[329378022,1718292694007,-1160.7,0.00027122,3]
[329378023,1718292694052,-500.0,0.00027122,3]
[329378024,1718292694087,-635.4,0.00027122,3]
[329378025,1718292694107,-984.58,0.00027122,3]
[329378026,1718292694129,-2101.74,0.00027122,3]
[329378027,1718292694148,-529.09,0.00027122,3]
[329378028,1718292694207,-177.91,0.00027122,3]
[329378029,1718292694222,-1065.38,0.00027122,3]
[329378030,1718292694235,-2589.34,0.00027122,3]
[329378031,1718292694255,-3405.79,0.00027122,3]
[329378032,1718292694281,-789.36,0.00027122,3]
[329378033,1718292694293,-1078.35,0.00027122,3]
[329378034,1718292694317,-500.0,0.00027122,3]
[329378035,1718292694339,-500.0,0.00027122,3]
[329378036,1718292694364,-590.78,0.00027122,3]
[329378037,1718292694403,-500.0,0.00027122,3]
[329378038,1718292694435,-500.0,0.00027122,3]
[329378039,1718292694460,-689.43,0.00027122,3]
[329378040,1718292694508,-628.08,0.00027122,3]
[329378041,1718292694553,-500.0,0.00027122,3]
[329378042,1718292694568,-500.0,0.00027122,3]
[329378043,1718292694594,-731.88,0.00027122,3]
[329378044,1718292694610,-539.27,0.00027122,3]
[329378045,1718292694636,-1216.69,0.00027122,3]
[329378046,1718292694659,-800.18,0.00027122,3]
[329378047,1718292694680,-1199.27,0.00027122,3]
[329378048,1718292694727,-1277.74,0.00027122,3]
[329378049,1718292694759,-1138.63,0.00027122,3]
[329378050,1718292694804,-500.0,0.00027122,3]
[329378051,1718292694826,-3406.93,0.00027122,3]
[329378052,1718292694838,-289.11,0.00027122,3]
[329378053,1718292694850,-1350.88,0.00027122,3]
[329378054,1718292694887,-851.08,0.00027122,3]
[329378055,1718292694916,-500.0,0.00027122,3]
[329378056,1718292694980,-947.08,0.00027122,3]
[329378057,1718292695026,-727.33,0.00027122,3]
[329378058,1718292695078,-500.0,0.00027122,3]
[329378059,1718292695127,-500.0,0.00027122,3]
[329378060,1718292695153,-505.2,0.00027122,3]
[329378061,1718292695173,-719.42,0.00027122,3]
[329378062,1718292695194,-1080.47,0.00027122,3]
[329378063,1718292695223,-500.0,0.00027123,3]
[329378064,1718292695243,-2669.88,0.00027123,3]
[329378065,1718292695311,-500.0,0.00027123,3]
[329378066,1718292695323,-857.41,0.00027123,3]
[329378067,1718292695334,-1143.43,0.00027123,3]
[329378068,1718292695353,-500.0,0.00027123,3]
[329378069,1718292695368,-1621.77,0.00027123,3]
[329378070,1718292695382,-674.54,0.00027123,3]
[329378071,1718292695415,-500.0,0.00027123,3]
[329378072,1718292695467,-1174.3,0.00027123,3]
[329378073,1718292695478,-500.0,0.00027123,3]
[329378074,1718292695488,-500.0,0.00027123,3]
[329378075,1718292695498,-1348.57,0.00027123,3]
[329378076,1718292695515,-500.0,0.00027123,3]
[329378077,1718292695546,-500.0,0.00027123,3]
[329378078,1718292695564,-584.72,0.00027123,3]
[329378079,1718292695608,-500.0,0.00027123,3]
[329378080,1718292695621,-647.9733118,0.00027123,3]
[329378081,1718292695634,-502.75,0.00027123,3]
[329378082,1718292695660,-535.86,0.00027123,3]
[329378083,1718292695677,-1384.42,0.00027123,3]
[329378084,1718292695704,-822.29,0.00027123,3]
[329378085,1718292695715,-521.6,0.00027123,3]
[329378086,1718292695795,-500.0,0.00027123,3]
[329378087,1718292695808,-500.0,0.00027123,3]
[329378088,1718292695827,-500.0,0.00027123,3]
[329378089,1718292695843,-500.0,0.00027123,3]
[329378090,1718292695861,-1073.92,0.00027123,3]
[329378091,1718292695874,-2065.58,0.00027123,3]
[329378092,1718292695921,-500.0,0.00027123,3]
[329378093,1718292695986,-649.62,0.00027123,3]
[329378094,1718292695998,-550.84,0.00027123,3]
[329378095,1718292696022,-500.0,0.00027123,3]
[329378096,1718292696071,-500.0,0.00027123,3]
[329378097,1718292696139,-500.0,0.00027123,3]
[329378098,1718292696152,-928.65,0.00027123,3]
[329378099,1718292696192,-502.28,0.00027123,3]
[329378100,1718292696228,-691.98,0.00027123,3]
[329378101,1718292696263,-651.06,0.00027123,3]
[329378102,1718292696277,-500.0,0.00027123,3]
[329378103,1718292696296,-516.01,0.00027123,3]
[329378104,1718292696327,-1917.61,0.00027123,3]
[329378105,1718292696350,-1173.15,0.00027123,3]
[329378106,1718292696365,-500.0,0.00027123,3]
[329378107,1718292696390,-500.0,0.00027123,3]
[329378108,1718292696403,-1388.4,0.00027123,3]
[329378109,1718292696427,-719.63,0.00027123,3]
[329378110,1718292696456,-1331.03925421,0.00027282,2]
[329378111,1718292696471,-290.12695926,0.00027366,2]
[329378112,1718292696503,-165.47442078,0.00027368,2]
[329378113,1718292696516,-500.0,0.00027396,3]
[329378114,1718292696535,-500.0,0.00027396,3]
[329378115,1718292696547,-500.0,0.00027396,3]
[329378116,1718292696593,-500.0,0.00027396,3]
[329378117,1718292696608,-260.41977683,0.00027396,3]
[329378118,1718292696636,-500.0,0.00027396,3]
[329378119,1718292696696,-500.0,0.00027396,3]
[329378120,1718292696713,-154.15,0.00027396,3]
[329378121,1718292696729,-500.0,0.00027396,3]
[329378122,1718292696740,-500.0,0.00027396,3]
[329378123,1718292696770,-724.51,0.00027396,3]
[329378124,1718292696784,-497.3,0.00027396,3]
[329378125,1718292696802,-500.0,0.00027396,3]
[329378126,1718292696815,-500.0,0.00027396,3]
[329378127,1718292696833,-500.0,0.00027396,3]
[329378128,1718292696856,-500.0,0.00027396,3]
[329378129,1718292696871,-500.0,0.00027396,3]
[329378130,1718292696884,-500.0,0.00027396,3]
[329378131,1718292696898,-514.8,0.00027396,3]
[329378132,1718292696909,-500.0,0.00027396,3]
[329378133,1718292696932,-500.0,0.00027396,3]
[329378134,1718292696952,-820.37,0.00027396,3]
[329378135,1718292696976,-1564.46,0.00027396,3]
[329378136,1718292696996,-1160.7,0.00027396,3]
[329378137,1718292697012,-500.0,0.00027396,3]
[329378138,1718292697028,-635.4,0.00027396,3]
[329378139,1718292697058,-984.58,0.00027396,3]
[329378140,1718292697085,-2101.74,0.00027396,3]
[329378141,1718292697113,-529.09,0.00027396,3]
[329378142,1718292697150,-1065.38,0.00027396,3]
[329378143,1718292697171,-2589.34,0.00027396,3]
[329378144,1718292697200,-3405.79,0.00027396,3]
[329378145,1718292697219,-789.36,0.00027396,3]
[329378146,1718292697240,-1078.35,0.00027396,3]
[329378147,1718292697252,-500.0,0.00027396,3]
[329378148,1718292697267,-500.0,0.00027396,3]
[329378149,1718292697327,-590.78,0.00027396,3]
[329378150,1718292697344,-500.0,0.00027396,3]
[329378151,1718292697361,-500.0,0.00027396,3]
[329378152,1718292697377,-689.43,0.00027396,3]
[329378153,1718292697392,-628.08,0.00027396,3]
[329378154,1718292697407,-500.0,0.00027396,3]
[329378155,1718292697426,-500.0,0.00027396,3]
[329378156,1718292697464,-731.88,0.00027396,3]
[329378157,1718292697484,-539.27,0.00027396,3]
[329378158,1718292697495,-1216.69,0.00027396,3]
[329378159,1718292697513,-800.18,0.00027396,3]
[329378160,1718292697526,-1199.27,0.00027396,3]
[329378161,1718292697576,-1277.74,0.00027396,3]
[329378162,1718292697588,-1138.63,0.00027396,3]
[329378163,1718292697600,-500.0,0.00027396,3]
[329378164,1718292697622,-3406.93,0.00027396,3]
[329378165,1718292697636,-1350.88,0.00027396,3]
[329378166,1718292697659,-851.08,0.00027396,3]
[329378167,1718292697674,-500.0,0.00027396,3]
[329378168,1718292697698,-947.08,0.00027396,3]
[329378169,1718292697709,-727.33,0.00027396,3]
[329378170,1718292697731,-500.0,0.00027396,3]
[329378171,1718292697748,-598.94053796,0.00027396,3]
[329378172,1718292697763,-505.2,0.00027396,3]
[329378173,1718292697783,-719.42,0.00027396,3]
[329378174,1718292697805,-1080.47,0.00027396,3]
[329378175,1718292697817,-331.88977972,0.00027397,2]
[329378176,1718292697846,-500.0,0.00027397,3]
[329378177,1718292697871,-2669.88,0.00027397,3]